[Event "Titled Tuesday Blitz May 16 Early 2023"]
[White "Goldin, Roman"]
[Black "Aarav Dengla"]
[WhiteFideId "2803860"]
[BlackFideId "45059756"]
[WhiteElo "2312"]
[BlackElo "2288"]
[Result "1-0"]
[Round "04"]
[TimeControl "180+2"]
[Date "2023.05.16"]
[WhiteClock "0:00:06"]
[BlackClock "0:00:00"]

1. Nf3 {[%clk 0:03:00]}  d5 {[%clk 0:02:58]} 2. e3 {[%clk 0:03:00]}  Nf6 {[%clk 0:02:57]} 3. b4 {[%clk 0:03:00]}  g6 {[%clk 0:02:55]} 4. Bb2 {[%clk 0:02:59]}  Bg7 {[%clk 0:02:56]} 5. c4 {[%clk 0:03:00]}  O-O {[%clk 0:02:56]} 6. cxd5 {[%clk 0:03:01]}  Qxd5 {[%clk 0:02:55]} 7. Nc3 {[%clk 0:02:54]}  Qd8 {[%clk 0:02:56]} 8. Qc2 {[%clk 0:02:51]}  b6 {[%clk 0:02:56]} 9. Be2 {[%clk 0:02:49]}  Bb7 {[%clk 0:02:56]} 10. O-O {[%clk 0:02:49]}  Nc6 {[%clk 0:02:45]} 11. a3 {[%clk 0:02:48]}  e6 {[%clk 0:02:44]} 12. Rac1 {[%clk 0:02:48]}  Ne7 {[%clk 0:02:42]} 13. b5 {[%clk 0:02:35]}  Qd6 {[%clk 0:02:34]} 14. d4 {[%clk 0:02:11]}  Ned5 {[%clk 0:02:20]} 15. g3 {[%clk 0:01:58]}  Nxc3 {[%clk 0:02:19]} 16. Bxc3 {[%clk 0:01:53]}  Qd5 {[%clk 0:02:09]} 17. Bb4 {[%clk 0:01:47]}  Rfc8 {[%clk 0:02:08]} 18. h3 {[%clk 0:01:07]}  Ne4 {[%clk 0:01:51]} 19. Qc4 {[%clk 0:00:48]}  Qf5 {[%clk 0:01:43]} 20. g4 {[%clk 0:00:33]}  Qf6 {[%clk 0:01:33]} 21. Nd2 {[%clk 0:00:33]}  Nd6 {[%clk 0:00:59]} 22. Qd3 {[%clk 0:00:29]}  Qh4 {[%clk 0:00:57]} 23. Kh2 {[%clk 0:00:26]}  e5 {[%clk 0:00:49]} 24. dxe5 {[%clk 0:00:20]}  Bxe5+ {[%clk 0:00:43]} 25. f4 {[%clk 0:00:20]}  Rd8 {[%clk 0:00:43]} 26. Bf3 {[%clk 0:00:09]}  Bxf3 {[%clk 0:00:33]} 27. Nxf3 {[%clk 0:00:08]}  Nf5 {[%clk 0:00:26]} 28. Nxh4 {[%clk 0:00:07]}  Rxd3 {[%clk 0:00:23]} 29. gxf5 {[%clk 0:00:07]}  Bf6 {[%clk 0:00:20]} 30. Ng2 {[%clk 0:00:07]}  Rc8 {[%clk 0:00:15]} 31. Rc6 {[%clk 0:00:07]}  Kg7 {[%clk 0:00:15]} 32. Rfc1 {[%clk 0:00:07]}  Rcd8 {[%clk 0:00:11]} 33. e4 {[%clk 0:00:06]}  gxf5 {[%clk 0:00:11]} 34. e5 {[%clk 0:00:07]}  Bh4 {[%clk 0:00:09]} 35. Nxh4 {[%clk 0:00:05]}  Rb3 {[%clk 0:00:06]} 36. Nxf5+ {[%clk 0:00:05]}  Kg8 {[%clk 0:00:04]} 37. Rxc7 {[%clk 0:00:06]}  Rb2+ {[%clk 0:00:04]} 38. Kg1 {[%clk 0:00:05]}  h5 {[%clk 0:00:03]} 39. Rc8 {[%clk 0:00:06]}  Rxc8 {[%clk 0:00:02]} 40. Rxc8+ {[%clk 0:00:06]}  Kh7 {[%clk 0:00:03]} 41. Rc7 {[%clk 0:00:06]}  Kg6 {[%clk 0:00:02]} 42. Nd6 {[%clk 0:00:06]}  Kg7 {[%clk 0:00:03]} 43. Rxf7+ {[%clk 0:00:06]}  Kg6 {[%clk 0:00:04]} 44. e6 {[%clk 0:00:06]}  Rb1+ {[%clk 0:00:03]} 45. Kf2 {[%clk 0:00:06]}  Rb2+ {[%clk 0:00:04]} 46. Ke3 {[%clk 0:00:06]}  Rb3+ {[%clk 0:00:05]} 47. Ke4 {[%clk 0:00:06]}  Rb1 {[%clk 0:00:06]} 48. f5+ {[%clk 0:00:07]}  Kg5 {[%clk 0:00:06]} 49. e7 {[%clk 0:00:07]}  Kh4 {[%clk 0:00:07]} 50. e8=Q {[%clk 0:00:07]}  Rb2 {[%clk 0:00:07]} 51. Qg8 {[%clk 0:00:06]}  Re2+ {[%clk 0:00:06]} 52. Kf3 {[%clk 0:00:07]}  Re3+ {[%clk 0:00:03]} 53. Kxe3 {[%clk 0:00:06]}  a5 {[%clk 0:00:00]} 54. Kf3 {[%clk 0:00:06]} 1-0


[Site "https://www.chess.com"]

[Event "Titled Tuesday Blitz May 16 Early 2023"]
[White "Jodorcovsky Werjivker, Paulo"]
[Black "Rodchenkov, Sergey D."]
[WhiteFideId "3700305"]
[BlackFideId "4168712"]
[WhiteElo "2120"]
[BlackElo "2277"]
[Result "1/2-1/2"]
[Round "04"]
[TimeControl "180+2"]
[Date "2023.05.16"]
[WhiteClock "0:00:12"]
[BlackClock "0:00:12"]

1. e4 {[%clk 0:03:00]}  c5 {[%clk 0:03:00]} 2. Nf3 {[%clk 0:03:00]}  d6 {[%clk 0:03:00]} 3. Bb5+ {[%clk 0:03:00]}  Nd7 {[%clk 0:03:00]} 4. c3 {[%clk 0:02:59]}  Nf6 {[%clk 0:02:58]} 5. Qe2 {[%clk 0:02:59]}  a6 {[%clk 0:02:58]} 6. Ba4 {[%clk 0:02:59]}  b5 {[%clk 0:02:50]} 7. Bc2 {[%clk 0:02:58]}  Bb7 {[%clk 0:02:50]} 8. O-O {[%clk 0:02:55]}  e6 {[%clk 0:02:50]} 9. d4 {[%clk 0:02:55]}  Be7 {[%clk 0:02:50]} 10. Re1 {[%clk 0:02:33]}  O-O {[%clk 0:02:49]} 11. Nbd2 {[%clk 0:02:32]}  Rc8 {[%clk 0:02:45]} 12. Nf1 {[%clk 0:02:32]}  b4 {[%clk 0:02:44]} 13. Ng3 {[%clk 0:02:23]}  cxd4 {[%clk 0:02:38]} 14. cxd4 {[%clk 0:02:23]}  Nb6 {[%clk 0:02:39]} 15. Bd3 {[%clk 0:02:21]}  a5 {[%clk 0:02:36]} 16. Bg5 {[%clk 0:02:09]}  h6 {[%clk 0:02:30]} 17. Bxf6 {[%clk 0:02:09]}  Bxf6 {[%clk 0:02:29]} 18. e5 {[%clk 0:02:09]}  Bh4 {[%clk 0:02:00]} 19. Ne4 {[%clk 0:02:06]}  Be7 {[%clk 0:01:42]} 20. Rad1 {[%clk 0:01:50]}  d5 {[%clk 0:01:33]} 21. Ned2 {[%clk 0:01:42]}  Qd7 {[%clk 0:01:29]} 22. Bb1 {[%clk 0:01:41]}  Nc4 {[%clk 0:01:14]} 23. Qd3 {[%clk 0:01:29]}  g6 {[%clk 0:01:14]} 24. Nxc4 {[%clk 0:01:26]}  dxc4 {[%clk 0:01:13]} 25. Qe3 {[%clk 0:01:25]}  Kg7 {[%clk 0:01:10]} 26. Rc1 {[%clk 0:01:04]}  Rfd8 {[%clk 0:00:59]} 27. Be4 {[%clk 0:01:02]}  Bxe4 {[%clk 0:00:48]} 28. Qxe4 {[%clk 0:01:03]}  Qd5 {[%clk 0:00:48]} 29. Qe3 {[%clk 0:00:54]}  c3 {[%clk 0:00:37]} 30. bxc3 {[%clk 0:00:53]}  bxc3 {[%clk 0:00:38]} 31. Rc2 {[%clk 0:00:52]}  Bb4 {[%clk 0:00:34]} 32. Rec1 {[%clk 0:00:50]}  Rc4 {[%clk 0:00:28]} 33. Ra1 {[%clk 0:00:41]}  Rdc8 {[%clk 0:00:27]} 34. a3 {[%clk 0:00:41]}  Be7 {[%clk 0:00:27]} 35. h4 {[%clk 0:00:33]}  Bd8 {[%clk 0:00:20]} 36. Rac1 {[%clk 0:00:30]}  Qc6 {[%clk 0:00:20]} 37. Qd3 {[%clk 0:00:19]}  Bb6 {[%clk 0:00:20]} 38. Rd1 {[%clk 0:00:16]}  Qd5 {[%clk 0:00:19]} 39. Qe3 {[%clk 0:00:16]}  Rd8 {[%clk 0:00:18]} 40. Qf4 {[%clk 0:00:16]}  Bxd4 {[%clk 0:00:14]} 41. Qf6+ {[%clk 0:00:16]}  Kg8 {[%clk 0:00:15]} 42. Rdc1 {[%clk 0:00:05]}  a4 {[%clk 0:00:08]} 43. h5 {[%clk 0:00:05]}  Bxf2+ {[%clk 0:00:03]} 44. Kxf2 {[%clk 0:00:05]}  Rg4 {[%clk 0:00:04]} 45. hxg6 {[%clk 0:00:05]}  Rxg6 {[%clk 0:00:04]} 46. Qf4 {[%clk 0:00:05]}  Qc5+ {[%clk 0:00:04]} 47. Qe3 {[%clk 0:00:05]}  Rxg2+ {[%clk 0:00:03]} 48. Kxg2 {[%clk 0:00:05]}  Qxe3 {[%clk 0:00:03]} 49. Rxc3 {[%clk 0:00:06]}  Qf4 {[%clk 0:00:04]} 50. Rc4 {[%clk 0:00:05]}  Qf5 {[%clk 0:00:04]} 51. Rg1 {[%clk 0:00:05]}  Kf8 {[%clk 0:00:04]} 52. Kf2 {[%clk 0:00:04]}  Rd3 {[%clk 0:00:04]} 53. Rg3 {[%clk 0:00:04]}  Rd2+ {[%clk 0:00:03]} 54. Ke3 {[%clk 0:00:04]}  Ra2 {[%clk 0:00:03]} 55. Rd4 {[%clk 0:00:04]}  Rxa3+ {[%clk 0:00:04]} 56. Kf2 {[%clk 0:00:04]}  Ra2+ {[%clk 0:00:04]} 57. Ke3 {[%clk 0:00:04]}  Rb2 {[%clk 0:00:05]} 58. Rd8+ {[%clk 0:00:04]}  Ke7 {[%clk 0:00:05]} 59. Rd3 {[%clk 0:00:05]}  Rb3 {[%clk 0:00:05]} 60. Rxb3 {[%clk 0:00:04]}  axb3 {[%clk 0:00:06]} 61. Rg2 {[%clk 0:00:04]}  h5 {[%clk 0:00:05]} 62. Rb2 {[%clk 0:00:04]}  Qg4 {[%clk 0:00:05]} 63. Rxb3 {[%clk 0:00:05]}  Qc4 {[%clk 0:00:06]} 64. Rb7+ {[%clk 0:00:05]}  Kf8 {[%clk 0:00:06]} 65. Nd4 {[%clk 0:00:05]}  Qc3+ {[%clk 0:00:06]} 66. Ke4 {[%clk 0:00:05]}  Qg3 {[%clk 0:00:06]} 67. Nf3 {[%clk 0:00:05]}  Qg4+ {[%clk 0:00:06]} 68. Ke3 {[%clk 0:00:06]}  h4 {[%clk 0:00:07]} 69. Rb2 {[%clk 0:00:06]}  h3 {[%clk 0:00:07]} 70. Rh2 {[%clk 0:00:06]}  Qf5 {[%clk 0:00:07]} 71. Kf2 {[%clk 0:00:06]}  f6 {[%clk 0:00:08]} 72. Kg3 {[%clk 0:00:07]}  fxe5 {[%clk 0:00:08]} 73. Rxh3 {[%clk 0:00:08]}  Qf4+ {[%clk 0:00:08]} 74. Kg2 {[%clk 0:00:08]}  e4 {[%clk 0:00:08]} 75. Ng1 {[%clk 0:00:08]}  e3 {[%clk 0:00:08]} 76. Rf3 {[%clk 0:00:08]}  Qxf3+ {[%clk 0:00:08]} 77. Kxf3 {[%clk 0:00:09]}  e2 {[%clk 0:00:09]} 78. Kxe2 {[%clk 0:00:10]}  Ke7 {[%clk 0:00:09]} 79. Ke3 {[%clk 0:00:11]}  Kf6 {[%clk 0:00:10]} 80. Nf3 {[%clk 0:00:11]}  Ke7 {[%clk 0:00:11]} 81. Nd4 {[%clk 0:00:12]}  Kf6 {[%clk 0:00:12]} 82. Nxe6 {[%clk 0:00:12]} 1/2-1/2


[Site "https://www.chess.com"]

[Event "Titled Tuesday Blitz May 16 Early 2023"]
[White "Turzo, Attila"]
[Black "Boder, Jan"]
[WhiteFideId "704954"]
[BlackFideId "16243226"]
[WhiteElo "2471"]
[BlackElo "2241"]
[Result "1-0"]
[Round "04"]
[TimeControl "180+2"]
[Date "2023.05.16"]
[WhiteClock "0:00:06"]
[BlackClock "0:00:08"]

1. d4 {[%clk 0:03:00]}  Nf6 {[%clk 0:02:59]} 2. c4 {[%clk 0:03:00]}  e6 {[%clk 0:02:59]} 3. g3 {[%clk 0:03:00]}  c5 {[%clk 0:02:56]} 4. d5 {[%clk 0:03:00]}  e5 {[%clk 0:02:55]} 5. Nc3 {[%clk 0:02:57]}  d6 {[%clk 0:02:55]} 6. e4 {[%clk 0:02:54]}  Be7 {[%clk 0:02:55]} 7. h4 {[%clk 0:02:35]}  O-O {[%clk 0:02:54]} 8. Bh3 {[%clk 0:02:35]}  a6 {[%clk 0:02:54]} 9. a4 {[%clk 0:02:34]}  Ne8 {[%clk 0:02:44]} 10. Bxc8 {[%clk 0:02:31]}  Qxc8 {[%clk 0:02:44]} 11. g4 {[%clk 0:02:26]}  Nd7 {[%clk 0:02:31]} 12. a5 {[%clk 0:02:20]}  b6 {[%clk 0:02:01]} 13. axb6 {[%clk 0:02:20]}  Nxb6 {[%clk 0:02:02]} 14. b3 {[%clk 0:02:19]}  h5 {[%clk 0:01:29]} 15. gxh5 {[%clk 0:02:13]}  f5 {[%clk 0:01:29]} 16. Nge2 {[%clk 0:01:53]}  Nf6 {[%clk 0:01:21]} 17. Ng3 {[%clk 0:01:51]}  fxe4 {[%clk 0:01:18]} 18. h6 {[%clk 0:01:41]}  Qg4 {[%clk 0:01:08]} 19. Qxg4 {[%clk 0:01:33]}  Nxg4 {[%clk 0:01:09]} 20. Ncxe4 {[%clk 0:01:28]}  Rf3 {[%clk 0:01:04]} 21. Rb1 {[%clk 0:01:15]}  Raf8 {[%clk 0:00:56]} 22. hxg7 {[%clk 0:01:13]}  Kxg7 {[%clk 0:00:56]} 23. Rb2 {[%clk 0:01:01]}  a5 {[%clk 0:00:56]} 24. Rg1 {[%clk 0:00:30]}  Kh7 {[%clk 0:00:53]} 25. Nf1 {[%clk 0:00:29]}  Nh6 {[%clk 0:00:45]} 26. Bxh6 {[%clk 0:00:28]}  Kxh6 {[%clk 0:00:46]} 27. Nfd2 {[%clk 0:00:24]}  R3f4 {[%clk 0:00:45]} 28. Rh1 {[%clk 0:00:22]}  Rg8 {[%clk 0:00:14]} 29. Ra2 {[%clk 0:00:20]}  Rgg4 {[%clk 0:00:10]} 30. f3 {[%clk 0:00:19]}  Rg2 {[%clk 0:00:07]} 31. Rxa5 {[%clk 0:00:19]}  Bxh4+ {[%clk 0:00:08]} 32. Kd1 {[%clk 0:00:18]}  Kg6 {[%clk 0:00:02]} 33. Ra6 {[%clk 0:00:18]}  Nc8 {[%clk 0:00:03]} 34. Rc6 {[%clk 0:00:19]}  Ne7 {[%clk 0:00:03]} 35. Rxd6+ {[%clk 0:00:19]}  Kf7 {[%clk 0:00:03]} 36. Rh6 {[%clk 0:00:19]}  Nf5 {[%clk 0:00:03]} 37. Rh7+ {[%clk 0:00:17]}  Kg6 {[%clk 0:00:03]} 38. Rc7 {[%clk 0:00:15]}  Ne3+ {[%clk 0:00:03]} 39. Kc1 {[%clk 0:00:15]}  Nf5 {[%clk 0:00:04]} 40. Rxc5 {[%clk 0:00:15]}  Nd4 {[%clk 0:00:04]} 41. d6 {[%clk 0:00:13]}  Bd8 {[%clk 0:00:02]} 42. d7 {[%clk 0:00:12]}  Kf7 {[%clk 0:00:02]} 43. Rxe5 {[%clk 0:00:11]}  Ne6 {[%clk 0:00:02]} 44. Nd6+ {[%clk 0:00:10]}  Kf6 {[%clk 0:00:02]} 45. Rhe1 {[%clk 0:00:09]}  Nd4 {[%clk 0:00:01]} 46. Ne8+ {[%clk 0:00:07]}  Kf7 {[%clk 0:00:01]} 47. R5e4 {[%clk 0:00:07]}  Rxe4 {[%clk 0:00:01]} 48. Rxe4 {[%clk 0:00:08]}  Ne2+ {[%clk 0:00:01]} 49. Kc2 {[%clk 0:00:08]}  Ng3 {[%clk 0:00:02]} 50. Rg4 {[%clk 0:00:07]}  Ke7 {[%clk 0:00:02]} 51. Rg7+ {[%clk 0:00:06]}  Ke6 {[%clk 0:00:01]} 52. Kd3 {[%clk 0:00:06]}  Rg1 {[%clk 0:00:02]} 53. Ne4 {[%clk 0:00:05]}  Bb6 {[%clk 0:00:01]} 54. Rxg3 {[%clk 0:00:04]}  Rxg3 {[%clk 0:00:01]} 55. Nxg3 {[%clk 0:00:05]}  Kxd7 {[%clk 0:00:02]} 56. Nf6+ {[%clk 0:00:05]}  Ke6 {[%clk 0:00:02]} 57. Nd5 {[%clk 0:00:06]}  Bd8 {[%clk 0:00:02]} 58. Ne4 {[%clk 0:00:07]}  Kd7 {[%clk 0:00:03]} 59. c5 {[%clk 0:00:07]}  Ke6 {[%clk 0:00:04]} 60. Kc4 {[%clk 0:00:07]}  Ke5 {[%clk 0:00:05]} 61. b4 {[%clk 0:00:07]}  Bh4 {[%clk 0:00:04]} 62. b5 {[%clk 0:00:07]}  Bd8 {[%clk 0:00:05]} 63. b6 {[%clk 0:00:07]}  Bh4 {[%clk 0:00:06]} 64. b7 {[%clk 0:00:06]}  Kf5 {[%clk 0:00:05]} 65. b8=Q {[%clk 0:00:06]}  Be7 {[%clk 0:00:06]} 66. Qf4+ {[%clk 0:00:06]}  Ke6 {[%clk 0:00:06]} 67. Qg4+ {[%clk 0:00:06]}  Kf7 {[%clk 0:00:06]} 68. Qf5+ {[%clk 0:00:06]}  Ke8 {[%clk 0:00:07]} 69. Nd6+ {[%clk 0:00:06]}  Kd8 {[%clk 0:00:08]} 70. Qc8# {[%clk 0:00:06]} 1-0


[Site "https://www.chess.com"]

[Event "Titled Tuesday Blitz May 16 Early 2023"]
[White "mjelcic"]
[Black "Begunov, Konstantin"]
[BlackFideId "4118510"]
[WhiteElo "2247"]
[BlackElo "2050"]
[Result "1-0"]
[Round "04"]
[TimeControl "180+2"]
[Date "2023.05.16"]
[WhiteClock "0:00:12"]
[BlackClock "0:00:00"]

1. c4 {[%clk 0:03:00]}  c6 {[%clk 0:02:56]} 2. e4 {[%clk 0:02:59]}  d5 {[%clk 0:02:56]} 3. exd5 {[%clk 0:03:00]}  cxd5 {[%clk 0:02:56]} 4. d4 {[%clk 0:03:00]}  Nf6 {[%clk 0:02:56]} 5. Nc3 {[%clk 0:03:00]}  Nc6 {[%clk 0:02:54]} 6. Nf3 {[%clk 0:03:00]}  e6 {[%clk 0:02:54]} 7. cxd5 {[%clk 0:03:00]}  Nxd5 {[%clk 0:02:54]} 8. Bd3 {[%clk 0:03:00]}  Be7 {[%clk 0:02:53]} 9. O-O {[%clk 0:03:00]}  Ncb4 {[%clk 0:02:52]} 10. Bb1 {[%clk 0:02:59]}  b6 {[%clk 0:02:46]} 11. Re1 {[%clk 0:02:58]}  Bb7 {[%clk 0:02:40]} 12. a3 {[%clk 0:02:58]}  Nxc3 {[%clk 0:02:38]} 13. bxc3 {[%clk 0:02:57]}  Nd5 {[%clk 0:02:37]} 14. Qd3 {[%clk 0:02:58]}  Rc8 {[%clk 0:02:31]} 15. c4 {[%clk 0:02:36]}  Ba6 {[%clk 0:02:19]} 16. Ne5 {[%clk 0:02:33]}  Qc7 {[%clk 0:02:09]} 17. Qg3 {[%clk 0:02:19]}  Bxc4 {[%clk 0:00:45]} 18. Qxg7 {[%clk 0:02:11]}  Bf6 {[%clk 0:00:43]} 19. Qh6 {[%clk 0:01:52]}  Bb5 {[%clk 0:00:21]} 20. Be4 {[%clk 0:01:43]}  Qc3 {[%clk 0:00:19]} 21. Be3 {[%clk 0:00:34]}  Nxe3 {[%clk 0:00:18]} 22. fxe3 {[%clk 0:00:35]}  Bxe5 {[%clk 0:00:17]} 23. dxe5 {[%clk 0:00:36]}  Qxe5 {[%clk 0:00:15]} 24. Bf3 {[%clk 0:00:34]}  Rg8 {[%clk 0:00:14]} 25. Rad1 {[%clk 0:00:32]}  Qg5 {[%clk 0:00:11]} 26. Qxh7 {[%clk 0:00:29]}  Bc6 {[%clk 0:00:11]} 27. Bxc6+ {[%clk 0:00:28]}  Rxc6 {[%clk 0:00:12]} 28. Qe4 {[%clk 0:00:28]}  Rc4 {[%clk 0:00:09]} 29. Qa8+ {[%clk 0:00:25]}  Ke7 {[%clk 0:00:09]} 30. Qb7+ {[%clk 0:00:26]}  Kf8 {[%clk 0:00:06]} 31. Rf1 {[%clk 0:00:26]}  Qg6 {[%clk 0:00:02]} 32. Rd8+ {[%clk 0:00:24]}  Kg7 {[%clk 0:00:03]} 33. Rxg8+ {[%clk 0:00:24]}  Kxg8 {[%clk 0:00:03]} 34. Qf3 {[%clk 0:00:19]}  Rc2 {[%clk 0:00:04]} 35. a4 {[%clk 0:00:19]}  Ra2 {[%clk 0:00:04]} 36. Qa8+ {[%clk 0:00:16]}  Kg7 {[%clk 0:00:03]} 37. Qc6 {[%clk 0:00:17]}  Re2 {[%clk 0:00:02]} 38. Kh1 {[%clk 0:00:16]}  Rxe3 {[%clk 0:00:01]} 39. a5 {[%clk 0:00:14]}  bxa5 {[%clk 0:00:01]} 40. Qb5 {[%clk 0:00:12]}  Re4 {[%clk 0:00:00]} 41. Qb2+ {[%clk 0:00:12]} 1-0


[Site "https://www.chess.com"]

[Event "Titled Tuesday Blitz May 16 Early 2023"]
[White "Jimenez Almeida, Luis David"]
[Black "Chakravarthi Reddy, M"]
[WhiteFideId "22242244"]
[BlackFideId "25009532"]
[WhiteElo "2245"]
[BlackElo "2201"]
[Result "1-0"]
[Round "04"]
[TimeControl "180+2"]
[Date "2023.05.16"]
[WhiteClock "0:00:16"]
[BlackClock "0:00:08"]

1. e4 {[%clk 0:03:00]}  c5 {[%clk 0:02:51]} 2. Nc3 {[%clk 0:02:59]}  d6 {[%clk 0:02:49]} 3. Nge2 {[%clk 0:02:57]}  Nc6 {[%clk 0:02:50]} 4. g3 {[%clk 0:02:57]}  g6 {[%clk 0:02:49]} 5. Bg2 {[%clk 0:02:58]}  Bg7 {[%clk 0:02:50]} 6. O-O {[%clk 0:02:58]}  h5 {[%clk 0:02:44]} 7. h3 {[%clk 0:02:54]}  Nf6 {[%clk 0:02:42]} 8. d4 {[%clk 0:02:53]}  cxd4 {[%clk 0:02:42]} 9. Nxd4 {[%clk 0:02:54]}  h4 {[%clk 0:02:42]} 10. Nxc6 {[%clk 0:02:39]}  bxc6 {[%clk 0:02:41]} 11. g4 {[%clk 0:02:39]}  Be6 {[%clk 0:02:29]} 12. e5 {[%clk 0:02:31]}  Nd5 {[%clk 0:02:11]} 13. exd6 {[%clk 0:02:21]}  Qxd6 {[%clk 0:02:07]} 14. Ne4 {[%clk 0:02:19]}  Qd7 {[%clk 0:01:29]} 15. Nc5 {[%clk 0:02:10]}  Qc8 {[%clk 0:01:24]} 16. Nxe6 {[%clk 0:02:00]}  Qxe6 {[%clk 0:01:21]} 17. Re1 {[%clk 0:01:58]}  Qd7 {[%clk 0:01:11]} 18. c3 {[%clk 0:01:20]}  Rd8 {[%clk 0:00:40]} 19. Bg5 {[%clk 0:01:11]}  f6 {[%clk 0:00:40]} 20. Bd2 {[%clk 0:00:42]}  e5 {[%clk 0:00:36]} 21. Qc2 {[%clk 0:00:40]}  Kf7 {[%clk 0:00:35]} 22. Rad1 {[%clk 0:00:40]}  Ne7 {[%clk 0:00:35]} 23. Be3 {[%clk 0:00:32]}  Qe6 {[%clk 0:00:29]} 24. Bxa7 {[%clk 0:00:29]}  Qxa2 {[%clk 0:00:20]} 25. Bc5 {[%clk 0:00:26]}  Nd5 {[%clk 0:00:20]} 26. Be4 {[%clk 0:00:24]}  Rh6 {[%clk 0:00:20]} 27. c4 {[%clk 0:00:20]}  f5 {[%clk 0:00:09]} 28. Ra1 {[%clk 0:00:16]}  Qxa1 {[%clk 0:00:08]} 29. Rxa1 {[%clk 0:00:17]}  fxe4 {[%clk 0:00:08]} 30. cxd5 {[%clk 0:00:17]}  cxd5 {[%clk 0:00:09]} 31. Be3 {[%clk 0:00:17]}  Rhh8 {[%clk 0:00:08]} 32. Ra7+ {[%clk 0:00:17]}  Kg8 {[%clk 0:00:09]} 33. Qc7 {[%clk 0:00:17]}  Bf6 {[%clk 0:00:08]} 34. Qf7# {[%clk 0:00:16]} 1-0


[Site "https://www.chess.com"]

[Event "Titled Tuesday Blitz May 16 Early 2023"]
[White "Sowul, Bartosz"]
[Black "agvania123"]
[WhiteFideId "1137590"]
[WhiteElo "2188"]
[BlackElo "2241"]
[Result "1-0"]
[Round "04"]
[TimeControl "180+2"]
[Date "2023.05.16"]
[WhiteClock "0:00:17"]
[BlackClock "0:00:12"]

1. e4 {[%clk 0:03:00]}  d5 {[%clk 0:02:55]} 2. exd5 {[%clk 0:03:00]}  Qxd5 {[%clk 0:02:56]} 3. Nc3 {[%clk 0:03:00]}  Qd8 {[%clk 0:02:57]} 4. d4 {[%clk 0:02:56]}  Nf6 {[%clk 0:02:57]} 5. Nf3 {[%clk 0:02:42]}  Bg4 {[%clk 0:02:56]} 6. h3 {[%clk 0:02:37]}  Bxf3 {[%clk 0:02:56]} 7. Qxf3 {[%clk 0:02:37]}  c6 {[%clk 0:02:56]} 8. Be3 {[%clk 0:02:35]}  e6 {[%clk 0:02:56]} 9. O-O-O {[%clk 0:02:35]}  Bb4 {[%clk 0:02:53]} 10. Ne4 {[%clk 0:02:26]}  Nxe4 {[%clk 0:02:53]} 11. Qxe4 {[%clk 0:02:26]}  Qd5 {[%clk 0:02:54]} 12. Qxd5 {[%clk 0:02:24]}  cxd5 {[%clk 0:02:54]} 13. Kb1 {[%clk 0:02:20]}  Nc6 {[%clk 0:02:53]} 14. c3 {[%clk 0:02:20]}  Bd6 {[%clk 0:02:52]} 15. Bb5 {[%clk 0:02:18]}  a6 {[%clk 0:02:51]} 16. Bxc6+ {[%clk 0:02:13]}  bxc6 {[%clk 0:02:52]} 17. b4 {[%clk 0:02:14]}  a5 {[%clk 0:02:51]} 18. a3 {[%clk 0:02:14]}  axb4 {[%clk 0:02:51]} 19. axb4 {[%clk 0:02:14]}  Kd7 {[%clk 0:02:42]} 20. Kb2 {[%clk 0:02:14]}  Ra7 {[%clk 0:02:40]} 21. Ra1 {[%clk 0:02:14]}  Rha8 {[%clk 0:02:40]} 22. Rxa7+ {[%clk 0:02:12]}  Rxa7 {[%clk 0:02:41]} 23. Kb3 {[%clk 0:02:12]}  f6 {[%clk 0:02:36]} 24. h4 {[%clk 0:02:12]}  h5 {[%clk 0:02:30]} 25. Bd2 {[%clk 0:01:57]}  e5 {[%clk 0:02:15]} 26. dxe5 {[%clk 0:01:53]}  Bxe5 {[%clk 0:02:14]} 27. Be3 {[%clk 0:01:53]}  Ra8 {[%clk 0:02:12]} 28. Rg1 {[%clk 0:01:49]}  f5 {[%clk 0:01:52]} 29. g3 {[%clk 0:01:48]}  Rb8 {[%clk 0:01:41]} 30. Ra1 {[%clk 0:01:37]}  Rb7 {[%clk 0:01:36]} 31. Ra8 {[%clk 0:01:28]}  Rb8 {[%clk 0:01:34]} 32. Ra7+ {[%clk 0:01:28]}  Ke6 {[%clk 0:01:32]} 33. f4 {[%clk 0:01:27]}  Bf6 {[%clk 0:01:28]} 34. Bc5 {[%clk 0:01:23]}  Rc8 {[%clk 0:01:22]} 35. Rb7 {[%clk 0:01:19]}  Ra8 {[%clk 0:01:17]} 36. Ba7 {[%clk 0:01:03]}  Rc8 {[%clk 0:01:16]} 37. Kc2 {[%clk 0:00:56]}  Rd8 {[%clk 0:01:12]} 38. Kd3 {[%clk 0:00:54]}  Rd7 {[%clk 0:01:12]} 39. Rxd7 {[%clk 0:00:45]}  Kxd7 {[%clk 0:01:13]} 40. Bb8 {[%clk 0:00:41]}  Kc8 {[%clk 0:01:06]} 41. Bd6 {[%clk 0:00:36]}  Kd7 {[%clk 0:01:04]} 42. Bc5 {[%clk 0:00:35]}  g6 {[%clk 0:01:04]} 43. Kc2 {[%clk 0:00:33]}  Bd8 {[%clk 0:00:44]} 44. Kb3 {[%clk 0:00:32]}  Kc8 {[%clk 0:00:43]} 45. Ka4 {[%clk 0:00:30]}  Kb7 {[%clk 0:00:43]} 46. Bd4 {[%clk 0:00:29]}  Bb6 {[%clk 0:00:37]} 47. b5 {[%clk 0:00:23]}  c5 {[%clk 0:00:20]} 48. Bf2 {[%clk 0:00:21]}  d4 {[%clk 0:00:17]} 49. c4 {[%clk 0:00:09]}  d3 {[%clk 0:00:15]} 50. Kb3 {[%clk 0:00:09]}  Ba5 {[%clk 0:00:10]} 51. Kb2 {[%clk 0:00:05]}  Kc7 {[%clk 0:00:09]} 52. Kc1 {[%clk 0:00:05]}  Kd6 {[%clk 0:00:09]} 53. Kd1 {[%clk 0:00:06]}  Bb4 {[%clk 0:00:08]} 54. Be3 {[%clk 0:00:06]}  Kc7 {[%clk 0:00:08]} 55. Bd2 {[%clk 0:00:07]}  Ba3 {[%clk 0:00:06]} 56. Bc3 {[%clk 0:00:07]}  Kb6 {[%clk 0:00:06]} 57. Kd2 {[%clk 0:00:08]}  Bb4 {[%clk 0:00:06]} 58. Kxd3 {[%clk 0:00:08]}  Bxc3 {[%clk 0:00:05]} 59. Kxc3 {[%clk 0:00:09]}  Ka5 {[%clk 0:00:06]} 60. Kb3 {[%clk 0:00:10]}  Kb6 {[%clk 0:00:07]} 61. Ka4 {[%clk 0:00:10]}  Kb7 {[%clk 0:00:07]} 62. Ka5 {[%clk 0:00:11]}  Ka7 {[%clk 0:00:08]} 63. b6+ {[%clk 0:00:12]}  Kb7 {[%clk 0:00:09]} 64. Kb5 {[%clk 0:00:12]}  Kb8 {[%clk 0:00:10]} 65. Kxc5 {[%clk 0:00:13]}  Kb7 {[%clk 0:00:10]} 66. Kb5 {[%clk 0:00:14]}  Kb8 {[%clk 0:00:11]} 67. c5 {[%clk 0:00:15]}  Kc8 {[%clk 0:00:11]} 68. c6 {[%clk 0:00:15]}  Kb8 {[%clk 0:00:12]} 69. Ka6 {[%clk 0:00:16]}  g5 {[%clk 0:00:12]} 70. hxg5 {[%clk 0:00:15]}  h4 {[%clk 0:00:12]} 71. g6 {[%clk 0:00:16]}  hxg3 {[%clk 0:00:12]} 72. g7 {[%clk 0:00:17]}  g2 {[%clk 0:00:12]} 73. g8=Q# {[%clk 0:00:17]} 1-0


[Site "https://www.chess.com"]